bitfinex/quotes_SOLUSD_20241105
["timestamp","ask_amount","ask_price","bid_price","bid_amount"]
[1730766012997,0.3110248,158.89,158.88,30.070884]
[1730766013174,12.49810712,158.89,158.88,30.070884]
[1730766013709,12.49810712,158.89,158.87,6.2943]
[1730766014377,12.49810712,158.89,158.86,15.7371]
[1730766014585,0.3110248,158.89,158.86,15.7371]
[1730766015274,0.3110248,158.89,158.87,23.776884]
[1730766015694,0.3110248,158.89,158.87,30.070984]
[1730766017811,12.18708232,158.88,158.87,23.776884]
[1730766018102,12.18708232,158.88,158.86,23.776884]
[1730766018389,12.18708232,158.87,158.86,23.776884]
[1730766018772,12.18708232,158.87,158.85,6.2951]
[1730766018972,6.6046248,158.89,158.83,22.0356]
[1730766018973,12.18708232,158.86,158.83,22.0356]
[1730766019173,6.6046248,158.89,158.83,22.0356]
[1730766019174,12.18708232,158.85,158.83,22.0356]
[1730766019390,12.18708232,158.84,158.83,15.7397]
[1730766019696,12.18708232,158.84,158.79,12.18708232]
[1730766019909,12.18708232,158.84,158.8,22.0402]
[1730766020394,12.18708232,158.81,158.75,12.18708232]
[1730766020695,12.18708232,158.8,158.77,15.7458]
[1730766021085,12.18708232,158.81,158.77,15.7458]
[1730766021493,12.18708232,158.81,158.76,12.18708232]
[1730766021808,12.18708232,158.82,158.79,23.776884]
[1730766022099,18.78918232,158.83,158.79,23.776884]
[1730766022692,12.18708232,158.82,158.79,23.776884]
[1730766023811,12.18708232,158.81,158.79,6.2972]
[1730766023975,12.18708232,158.81,158.79,22.0412]
[1730766025110,18.78918232,158.83,158.8,23.776884]
[1730766025282,12.18708232,158.83,158.81,23.776884]
[1730766025482,12.18708232,158.84,158.81,23.776884]
[1730766026813,12.18708232,158.82,158.81,23.776884]
[1730766027708,12.18708232,158.83,158.81,23.776884]
[1730766028579,12.18708232,158.83,158.81,30.073684]
[1730766030113,12.18708232,158.84,158.81,30.073684]
[1730766035200,21.6722,158.87,158.81,23.776884]
[1730766035201,12.18708232,158.82,158.81,23.776884]
[1730766035404,12.18708232,158.82,158.8,23.776884]
[1730766036813,12.18708232,158.83,158.8,23.776884]
[1730766040113,12.18708232,158.82,158.8,23.776884]
[1730766041316,12.18708232,158.81,158.77,22.0439]
[1730766041520,12.18708232,158.78,158.77,22.0441]
[1730766041813,12.18708232,158.8,158.77,22.0441]
[1730766042215,16.3057,158.82,158.74,15.7489]
[1730766042216,12.18708232,158.78,158.74,15.7489]
[1730766042395,12.18708232,158.77,158.74,15.7489]
[1730766042603,12.18708232,158.76,158.72,6.3004]
[1730766043116,12.18708232,158.75,158.72,6.3004]
[1730766043734,12.18708232,158.75,158.73,20.0]
[1730766044014,12.18708232,158.75,158.71,22.0523]
[1730766044518,12.18708232,158.74,158.71,22.0523]
[1730766045014,12.18708232,158.74,158.69,0.12549]
[1730766045217,12.18708232,158.73,158.68,12.18708232]
[1730766045726,12.18708232,158.7,158.67,22.0582]
[1730766046015,12.18708232,158.71,158.67,22.0582]
[1730766047292,12.18708232,158.71,158.7,23.776884]
[1730766047524,12.18708232,158.71,158.68,30.078784]
[1730766047723,12.18708232,158.71,158.68,45.833684]
[1730766048223,12.18708232,158.69,158.64,12.18708232]
[1730766049421,12.18708232,158.69,158.65,43.776884]
[1730766049607,12.18708232,158.7,158.65,78.02496632]
[1730766050430,12.18708232,158.69,158.65,65.837884]
[1730766055723,12.18708232,158.73,158.69,23.776884]
[1730766056032,18.83368232,158.74,158.69,35.96396632]
[1730766056244,12.18708232,158.73,158.69,23.776884]
[1730766057617,12.18708232,158.73,158.71,23.776884]
[1730766058940,18.83368232,158.74,158.71,23.776884]
[1730766059819,18.83368232,158.74,158.71,30.077584]
[1730766060022,12.18708232,158.74,158.71,30.077584]
[1730766060540,12.18708232,158.75,158.71,45.829584]
[1730766060840,12.18708232,158.74,158.71,45.829584]
[1730766061216,12.18708232,158.72,158.71,23.776884]
[1730766061940,12.18708232,158.75,158.69,35.96396632]
[1730766062111,12.18708232,158.75,158.66,53.69899]
[1730766062112,28.23188232,158.76,158.71,35.96396632]
[1730766062313,18.47648232,158.78,158.73,35.96396632]
[1730766062544,6.2894,158.78,158.73,35.96396632]
[1730766062712,18.47648232,158.78,158.75,23.776884]
[1730766062919,12.18708232,158.76,158.75,23.776884]
[1730766063555,12.18708232,158.76,158.72,23.776884]
[1730766063837,12.18708232,158.73,158.68,15.7547]
[1730766064241,12.18708232,158.73,158.68,27.94178232]
[1730766064914,12.18708232,158.73,158.68,34.24368232]
[1730766065338,12.18708232,158.73,158.69,23.776884]
[1730766066041,12.18708232,158.73,158.71,23.776884]
[1730766066219,12.18708232,158.72,158.71,23.776884]
[1730766067922,12.18708232,158.73,158.71,23.776884]
[1730766068235,12.18708232,158.72,158.7,23.776884]
[1730766068623,12.18708232,158.73,158.7,23.776884]
[1730766069245,12.18708232,158.72,158.7,6.3011]
[1730766069553,12.18708232,158.73,158.7,6.3011]
[1730766070528,12.18708232,158.75,158.71,23.776884]
[1730766070729,12.18708232,158.76,158.71,23.776884]
[1730766071044,6.2984,158.77,158.71,23.776884]
[1730766071045,12.18708232,158.74,158.71,23.776884]
[1730766071429,12.18708232,158.75,158.71,23.776884]
[1730766071739,12.18708232,158.76,158.71,35.96396632]
[1730766072627,12.18708232,158.76,158.72,22.0514]
[1730766072932,12.18708232,158.76,158.73,23.776884]
[1730766073770,12.18708232,158.77,158.73,45.826584]
[1730766074321,12.18708232,158.76,158.73,45.826584]
[1730766075742,12.18708232,158.75,158.73,45.826584]
[1730766076052,12.18708232,158.74,158.73,39.526884]
[1730766076550,12.18708232,158.74,158.72,23.776884]
[1730766076850,12.18708232,158.73,158.71,6.3007]
[1730766077155,12.18708232,158.75,158.71,22.0527]
[1730766078235,12.18708232,158.75,158.72,23.776884]
[1730766078443,12.18708232,158.76,158.72,30.077184]
[1730766078648,12.18708232,158.76,158.72,45.828184]
[1730766079633,12.18708232,158.75,158.72,45.828184]
[1730766081843,12.18708232,158.76,158.72,45.828184]
[1730766082150,12.18708232,158.77,158.72,45.828184]
[1730766083554,12.18708232,158.77,158.72,58.01526632]
[1730766083955,12.18708232,158.76,158.72,45.828184]
[1730766084162,12.18708232,158.75,158.72,45.828184]
[1730766084334,12.18708232,158.74,158.72,45.828184]
[1730766084657,12.18708232,158.73,158.72,45.828184]
[1730766084860,12.18708232,158.74,158.72,45.828184]
[1730766085781,12.18708232,158.75,158.72,45.828184]
[1730766087369,12.18708232,158.74,158.72,45.828184]
[1730766088548,12.18708232,158.75,158.72,45.828184]
[1730766090047,12.18708232,158.76,158.72,45.828184]
[1730766091273,12.5874,158.78,158.72,45.828184]
[1730766091274,12.18708232,158.75,158.72,45.828184]
[1730766091842,12.18708232,158.76,158.72,45.828184]
[1730766092148,12.18708232,158.77,158.72,45.828184]
[1730766092955,12.18708232,158.76,158.72,45.828184]
[1730766093274,12.18708232,158.77,158.72,45.828184]
[1730766093456,12.18708232,158.79,158.74,23.776884]
[1730766093773,27.56648232,158.8,158.74,35.96396632]
[1730766094459,12.18708232,158.78,158.74,23.776884]
[1730766095562,12.18708232,158.79,158.75,22.0472]
[1730766095760,12.18708232,158.79,158.76,23.776884]
[1730766097461,12.18708232,158.77,158.76,23.776884]
[1730766099254,12.18708232,158.78,158.76,23.776884]
[1730766099666,21.6767,158.8,158.76,23.776884]
[1730766099667,12.18708232,158.79,158.76,23.776884]
[1730766100279,12.18708232,158.8,158.76,45.822284]
[1730766100784,12.18708232,158.78,158.76,45.822284]
[1730766102556,12.18708232,158.77,158.74,6.2992]
[1730766102758,12.18708232,158.76,158.73,22.0492]
[1730766102960,12.18708232,158.77,158.74,9.41774269]
[1730766103275,12.18708232,158.77,158.74,7.3130334]
[1730766103860,12.18708232,158.78,158.75,6.2992]
[1730766104273,12.18708232,158.8,158.76,23.776884]
[1730766104774,12.18708232,158.79,158.76,23.776884]
[1730766105377,12.18708232,158.78,158.76,23.776884]
[1730766105556,12.18708232,158.77,158.75,15.748]
[1730766105760,12.18708232,158.76,158.75,39.524884]
[1730766106578,12.18708232,158.76,158.75,45.824084]
[1730766106876,12.18708232,158.76,158.75,23.776884]
[1730766107576,12.18708232,158.77,158.75,23.776884]
[1730766107764,27.53668232,158.78,158.75,23.776884]
[1730766108577,12.18708232,158.77,158.75,23.776884]
[1730766111663,12.18708232,158.76,158.75,23.776884]
[1730766112465,12.18708232,158.77,158.75,23.776884]
[1730766113491,27.53668232,158.78,158.75,23.776884]
[1730766114480,12.18708232,158.77,158.75,23.776884]
[1730766115774,27.53668232,158.78,158.76,23.776884]
[1730766116800,12.18708232,158.79,158.76,23.776884]
[1730766116974,12.18708232,158.8,158.78,23.776884]
[1730766117178,12.18708232,158.81,158.78,23.776884]
[1730766117873,12.18708232,158.8,158.78,23.776884]
[1730766120603,29.0495,158.82,158.78,23.776884]
[1730766120604,12.18708232,158.79,158.78,23.776884]
[1730766120799,18.48468232,158.79,158.73,42.049]
[1730766121008,12.18708232,158.79,158.74,38.06967116]
[1730766121309,20.94884288,158.84,158.78,12.18708232]
[1730766121482,20.94884288,158.84,158.8,23.776884]
[1730766121677,22.9537,158.86,158.8,35.96396632]
[1730766122208,35.14078232,158.86,158.8,35.96396632]
[1730766122379,12.18708232,158.88,158.82,35.96396632]
[1730766122585,12.18708232,158.86,158.83,6.296]
[1730766122785,12.18708232,158.86,158.84,23.776884]
[1730766123615,0.3110248,158.89,158.86,23.776884]
[1730766124115,12.18708232,158.87,158.86,23.776884]
[1730766124289,12.18708232,158.87,158.76,42.0458]
[1730766124488,16.0491,158.88,158.77,9.10484051]
[1730766124784,16.0491,158.88,158.76,42.0458]
[1730766124785,16.0491,158.88,158.8,20.0]
[1730766125395,12.18708232,158.86,158.82,43.776884]
[1730766126487,12.18708232,158.86,158.84,23.776884]
[1730766127321,12.18708232,158.85,158.84,23.776884]
[1730766127613,12.18708232,158.85,158.83,23.776884]
[1730766127921,12.18708232,158.84,158.83,23.776884]
[1730766128513,12.18708232,158.85,158.83,23.776884]
[1730766128714,16.0491,158.88,158.83,23.776884]
[1730766128715,12.18708232,158.86,158.83,30.072884]
[1730766128919,12.18708232,158.86,158.83,45.812884]
[1730766129912,12.18708232,158.84,158.83,45.812884]
[1730766130322,12.18708232,158.84,158.83,39.516884]
[1730766130697,12.18708232,158.84,158.83,23.776884]
[1730766131022,12.18708232,158.85,158.83,23.776884]
[1730766131323,12.18708232,158.86,158.83,30.072784]
[1730766131623,12.18708232,158.85,158.83,30.072784]
[1730766133031,28.23618232,158.88,158.83,30.072784]
[1730766133321,28.23618232,158.88,158.83,42.25986632]
[1730766134115,0.3110248,158.89,158.85,23.776884]
[1730766134323,0.3110248,158.89,158.86,23.776884]
[1730766135330,0.3110248,158.89,158.85,43.902374]
[1730766135537,0.3110248,158.89,158.85,56.08945632]
[1730766136007,0.3110248,158.89,158.87,23.776884]
[1730766137635,12.18708232,158.88,158.87,23.776884]
[1730766138508,12.18708232,158.88,158.82,12.18708232]
[1730766138735,12.18708232,158.87,158.84,23.776884]
[1730766139726,12.18708232,158.88,158.86,23.776884]
[1730766143737,18.48168232,158.87,158.83,15.7399]
[1730766143932,12.18708232,158.84,158.83,39.516784]
[1730766146139,12.18708232,158.86,158.84,23.776884]
[1730766147040,12.18708232,158.85,158.84,23.776884]
[1730766147427,12.18708232,158.85,158.83,22.0359]
[1730766148037,12.18708232,158.85,158.83,15.7399]
[1730766149640,12.18708232,158.88,158.84,23.776884]
[1730766149846,18.78070712,158.89,158.84,23.776884]
[1730766150141,12.18708232,158.88,158.84,23.776884]
[1730766151251,18.78070712,158.89,158.86,23.776884]
[1730766151817,12.49810712,158.89,158.86,23.776884]
[1730766152126,0.3110248,158.89,158.86,23.776884]
[1730766153133,0.3110248,158.89,158.87,22.0305]
[1730766153319,12.49810712,158.89,158.88,23.776884]
[1730766153520,12.49810712,158.89,158.85,6.2948]
[1730766153717,12.18708232,158.86,158.85,50.071684]
[1730766153928,12.18708232,158.87,158.86,23.776884]
[1730766154143,12.18708232,158.88,158.86,23.776884]
[1730766154937,12.18708232,158.88,158.86,30.071584]
[1730766155143,12.18708232,158.87,158.86,30.071584]
[1730766155848,12.18708232,158.88,158.86,30.071584]
[1730766158345,12.18708232,158.87,158.86,23.776884]
[1730766158945,12.18708232,158.88,158.86,23.776884]
[1730766159126,12.49810712,158.89,158.86,45.808784]
[1730766159732,0.3110248,158.89,158.86,45.808784]
[1730766160449,12.49810712,158.89,158.86,45.808784]
[1730766161047,0.3110248,158.89,158.86,45.808784]
[1730766161637,12.49810712,158.89,158.86,45.808784]
[1730766166258,0.3110248,158.89,158.86,45.808784]
[1730766167057,12.49810712,158.89,158.86,45.808784]
[1730766167663,12.18708232,158.87,158.86,45.808784]
[1730766168839,12.18708232,158.87,158.86,39.513984]
[1730766169550,12.18708232,158.88,158.86,45.808784]
[1730766171047,12.18708232,158.87,158.86,45.808784]
[1730766171251,12.18708232,158.88,158.86,45.808784]
[1730766175446,12.18708232,158.87,158.86,39.513984]
[1730766175643,12.18708232,158.87,158.84,22.0343]
[1730766175870,12.18708232,158.87,158.85,25.87695339]
[1730766176173,12.18708232,158.88,158.85,23.776884]
[1730766176370,12.49810712,158.89,158.85,23.776884]
[1730766176746,0.3110248,158.89,158.86,22.0319]
[1730766177142,0.3110248,158.89,158.87,23.776884]
[1730766177572,0.3110248,158.89,158.87,35.96396632]
[1730766178266,0.3110248,158.89,158.88,25.8782683]
[1730766178857,0.3110248,158.89,158.88,35.8253388]
[1730766179062,0.3110248,158.89,158.88,32.17215425]
[1730766179375,0.3110248,158.89,158.88,35.82500515]
[1730766179876,0.3110248,158.89,158.88,32.17215425]
[1730766180369,0.3110248,158.89,158.88,55.82509133]
[1730766180596,0.3110248,158.89,158.88,30.070884]
[1730766181777,12.49810712,158.89,158.87,23.776884]
[1730766182352,0.3110248,158.89,158.87,23.776884]
[1730766183169,0.3110248,158.89,158.88,6.294]
[1730766183469,12.49810712,158.89,158.88,30.070884]
[1730766183858,0.3110248,158.89,158.88,30.070884]
[1730766186281,12.49810712,158.89,158.88,30.070884]
[1730766187282,12.49810712,158.89,158.86,15.7371]
[1730766187494,12.18708232,158.87,158.86,15.7371]
[1730766187780,12.18708232,158.87,158.86,41.61451655]
[1730766188487,12.18708232,158.87,158.86,39.513984]
[1730766188977,12.18708232,158.87,158.86,15.7371]
[1730766189167,12.18708232,158.87,158.82,3.36152257]
[1730766189371,6.2946,158.87,158.83,9.11659862]
[1730766189568,12.18708232,158.85,158.84,2.1007692]
[1730766189767,22.9582248,158.89,158.84,2.1007692]
[1730766189964,22.9582248,158.89,158.82,22.0364]
[1730766190157,22.9582248,158.89,158.83,5.75558206]
[1730766190361,22.9582248,158.89,158.84,2.10098884]
[1730766190668,12.18708232,158.86,158.84,6.2954]
[1730766191475,12.18708232,158.87,158.83,22.036]
[1730766191679,12.18708232,158.88,158.84,23.776884]
[1730766191866,12.18708232,158.87,158.84,23.776884]
[1730766192462,12.18708232,158.88,158.84,23.776884]
[1730766192778,12.18708232,158.87,158.84,23.776884]
[1730766192959,12.18708232,158.86,158.84,23.776884]
[1730766193157,12.18708232,158.85,158.84,23.776884]
[1730766193586,12.18708232,158.85,158.84,30.072484]
[1730766193764,12.18708232,158.86,158.84,23.776884]
[1730766193965,12.18708232,158.86,158.84,45.811584]
[1730766194276,12.18708232,158.86,158.85,23.776884]
[1730766194880,12.18708232,158.87,158.85,23.776884]
[1730766195179,12.18708232,158.86,158.85,23.776884]
[1730766197288,12.18708232,158.86,158.83,6.2957]
[1730766197474,12.18708232,158.86,158.84,25.87903443]
[1730766197677,12.18708232,158.86,158.84,23.776884]
[1730766198989,12.18708232,158.88,158.85,23.776884]
[1730766199364,12.18708232,158.86,158.84,15.7391]
[1730766199567,12.18708232,158.85,158.84,15.7391]
[1730766199775,12.18708232,158.85,158.84,39.515984]
[1730766200288,12.18708232,158.86,158.84,39.515984]
[1730766200485,12.18708232,158.87,158.84,45.811584]
[1730766202288,12.18708232,158.86,158.84,45.811584]
[1730766202593,12.18708232,158.85,158.84,39.515984]
[1730766203284,12.18708232,158.86,158.84,39.515984]
[1730766204975,12.18708232,158.85,158.84,23.776884]
[1730766205179,12.18708232,158.85,158.83,23.776884]
[1730766205381,16.6645248,158.89,158.82,3.36351969]
[1730766205382,12.18708232,158.84,158.82,3.36351969]
[1730766205576,12.18708232,158.83,158.82,3.36351969]
[1730766205774,12.18708232,158.83,158.82,9.12187957]
[1730766205984,12.18708232,158.83,158.82,3.36351969]
[1730766210085,33.87378232,158.83,158.82,3.36351969]
[1730766212226,33.87378232,158.83,158.78,23.776884]
[1730766212381,12.18708232,158.79,158.76,15.7469]
[1730766212584,12.18708232,158.77,158.76,39.523784]
[1730766213597,12.18708232,158.77,158.71,12.18708232]
[1730766213802,12.18708232,158.74,158.72,5.74497405]
[1730766213991,12.18708232,158.75,158.73,6.3]
[1730766214695,12.18708232,158.76,158.73,6.3]
[1730766215216,12.18708232,158.77,158.74,23.776884]
[1730766216111,12.18708232,158.76,158.75,30.076084]
[1730766216400,12.18708232,158.76,158.73,15.75]
[1730766216597,12.18708232,158.75,158.73,45.826884]
[1730766217316,12.18708232,158.77,158.74,23.776884]
[1730766217612,12.18708232,158.79,158.74,23.776884]
[1730766217820,12.18708232,158.79,158.75,22.0472]
[1730766218317,12.18708232,158.79,158.76,23.776884]
[1730766218715,12.18708232,158.78,158.76,23.776884]
[1730766219116,12.18708232,158.79,158.76,23.776884]
[1730766219607,12.18708232,158.78,158.76,23.776884]
[1730766219918,20.37647,158.76,158.63,12.18708232]
[1730766220121,12.18708232,158.67,158.62,17.2651]
[1730766220421,20.37647,158.76,158.62,17.2651]
[1730766220422,12.18708232,158.66,158.62,2.1353]
[1730766220791,12.18708232,158.65,158.62,2.1353]
[1730766221019,12.18708232,158.67,158.62,24.2005]
[1730766221415,19.09656168,158.67,158.62,24.2005]
[1730766221720,19.09656168,158.67,158.64,23.776884]
[1730766222296,19.09656168,158.66,158.64,23.776884]
[1730766222620,19.09656168,158.65,158.64,23.776884]
[1730766222798,19.09656168,158.66,158.64,23.776884]
[1730766222998,28.7565,158.7,158.64,23.776884]
[1730766222999,19.09656168,158.65,158.64,23.776884]
[1730766223195,19.09656168,158.65,158.63,23.776884]
[1730766223512,19.09656168,158.64,158.62,17.8962]
[1730766223932,19.09656168,158.65,158.62,17.8962]
[1730766224805,19.09656168,158.65,158.63,23.776884]
[1730766229602,19.09656168,158.64,158.63,23.776884]
[1730766230731,19.09656168,158.65,158.63,23.776884]
[1730766231915,19.09656168,158.64,158.63,23.776884]
[1730766232530,19.09656168,158.66,158.63,30.080784]
[1730766232821,6.3015,158.69,158.63,30.080784]
[1730766233118,19.09656168,158.72,158.67,23.776884]
[1730766233308,19.09656168,158.7,158.67,23.776884]
[1730766234512,19.09656168,158.7,158.67,30.079084]
[1730766236438,19.09656168,158.71,158.67,45.834984]
[1730766236942,19.09656168,158.72,158.67,64.93154568]
[1730766237125,19.09656168,158.74,158.69,42.87344568]
[1730766237313,19.09656168,158.73,158.7,20.0]
[1730766237518,19.09656168,158.73,158.71,23.776884]
[1730766238240,6.2984,158.77,158.67,41.15466168]
[1730766238241,19.09656168,158.72,158.67,15.7559]
[1730766238439,19.09656168,158.68,158.67,15.7559]
[1730766238627,19.09656168,158.68,158.67,39.532784]
[1730766239126,19.09656168,158.7,158.68,23.776884]
[1730766239724,19.09656168,158.69,158.67,15.7559]
[1730766239916,19.09656168,158.68,158.64,15.7586]
[1730766240240,19.09656168,158.67,158.64,15.7586]
[1730766240539,19.09656168,158.66,158.64,15.7586]
[1730766241944,19.09656168,158.66,158.65,23.776884]
[1730766243348,12.22301557,158.66,158.65,23.776884]
[1730766245146,12.22301557,158.66,158.63,23.776884]
[1730766245449,12.22301557,158.66,158.63,30.080684]
[1730766245641,12.22301557,158.68,158.63,30.080684]
[1730766245824,12.22301557,158.68,158.63,58.06359957]
[1730766246027,12.22301557,158.72,158.68,23.776884]
[1730766246427,12.22301557,158.72,158.67,23.776884]
[1730766246650,12.22301557,158.73,158.68,32.34850557]
[1730766246856,12.22301557,158.74,158.69,23.776884]
[1730766247429,19.07913043,158.73,158.7,6.3011]
[1730766247747,19.07913043,158.73,158.71,23.776884]
[1730766248052,28.2895,158.76,158.71,23.776884]
[1730766248053,19.07913043,158.75,158.71,23.776884]
[1730766248731,19.07913043,158.74,158.71,23.776884]
[1730766249754,19.07913043,158.73,158.71,30.077484]
[1730766250260,12.3486,158.76,158.71,30.077484]
[1730766250261,19.07913043,158.74,158.71,30.077484]
[1730766250462,19.07913043,158.72,158.71,30.077484]
[1730766251159,19.07913043,158.73,158.71,30.077484]
[1730766252835,19.07913043,158.74,158.71,30.077484]
[1730766254159,19.07913043,158.75,158.71,45.829484]
[1730766254364,19.07913043,158.77,158.71,64.90861443]
[1730766254536,19.07913043,158.77,158.73,23.776884]
[1730766254932,19.07913043,158.8,158.75,23.776884]
[1730766255167,30.91037755,158.82,158.77,23.776884]
[1730766255333,19.07913043,158.81,158.77,23.776884]
[1730766256246,11.83124712,158.82,158.78,20.12549]
[1730766256450,11.83124712,158.82,158.79,23.776884]
[1730766257041,11.83124712,158.82,158.81,23.776884]
[1730766258071,19.07913043,158.85,158.81,23.776884]
[1730766258240,19.07913043,158.86,158.81,23.776884]
[1730766258849,19.07913043,158.84,158.81,23.776884]
[1730766259571,19.07913043,158.85,158.8,23.776884]
[1730766259765,19.07913043,158.85,158.82,23.776884]
[1730766260357,19.07913043,158.86,158.82,23.776884]
[1730766260679,19.07913043,158.87,158.82,23.776884]
[1730766261074,0.3110248,158.89,158.84,42.85601443]
[1730766261281,19.07913043,158.88,158.86,23.776884]
[1730766261650,0.3110248,158.89,158.86,23.776884]
[1730766261651,19.07913043,158.87,158.86,23.776884]
[1730766261877,19.07913043,158.87,158.85,23.776884]
[1730766262063,19.07913043,158.86,158.85,23.776884]
[1730766262449,19.07913043,158.86,158.84,23.776884]
[1730766262681,19.07913043,158.87,158.84,23.776884]
[1730766262869,19.07913043,158.86,158.84,23.776884]
[1730766268173,19.07913043,158.86,158.84,30.072484]
[1730766268362,19.07913043,158.88,158.84,45.811584]
[1730766268883,19.07913043,158.87,158.84,45.811584]
[1730766269048,19.07913043,158.88,158.84,45.811584]
[1730766269379,19.07913043,158.87,158.84,45.811584]
[1730766270473,0.3110248,158.89,158.86,23.776884]
[1730766270663,0.3110248,158.89,158.86,42.85601443]
[1730766270865,0.3110248,158.89,158.86,23.776884]
[1730766271266,19.07913043,158.88,158.86,23.776884]
[1730766271660,19.39015523,158.89,158.86,23.776884]
[1730766272579,19.39015523,158.89,158.88,23.776884]
[1730766274383,19.39015523,158.89,158.86,23.776884]
[1730766274570,0.3110248,158.89,158.88,23.776884]
[1730766275085,19.39015523,158.89,158.88,23.776884]
[1730766276583,19.39015523,158.89,158.85,26.2951]
[1730766276889,19.07913043,158.88,158.86,23.776884]
[1730766277257,12.49919437,158.89,158.86,23.776884]
[1730766278861,12.18816957,158.88,158.86,45.808484]
[1730766281374,12.49919437,158.89,158.86,45.808484]
[1730766281568,0.3110248,158.89,158.88,43.902374]
[1730766282372,0.3110248,158.89,158.88,44.153354]
[1730766283791,2.48e-05,158.89,158.88,62.63552357]
[1730766284173,2.48e-05,158.89,158.88,77.78812357]
[1730766284565,21.6519,159.0,158.89,20.37647]
[1730766284566,12.49919437,158.97,158.89,20.37647]
[1730766284776,12.18816957,158.96,158.91,20.37647]
[1730766284979,12.18816957,158.95,158.91,20.37647]
[1730766285385,12.18816957,158.94,158.91,20.37647]
[1730766285795,12.18816957,158.94,158.93,20.12549]
[1730766286164,12.18816957,158.95,158.93,20.12549]
[1730766286390,12.18816957,158.96,158.93,20.12549]
[1730766286598,12.18816957,158.95,158.93,20.12549]
[1730766286775,12.18816957,158.95,158.94,23.902374]
[1730766287483,12.18816957,158.95,158.94,30.193974]
[1730766288394,12.18816957,158.95,158.94,30.068484]
[1730766288583,12.18816957,158.95,158.94,23.776884]
[1730766288785,12.18816957,158.95,158.94,30.068484]
[1730766289094,12.18816957,158.95,158.94,23.776884]
[1730766293280,12.18816957,158.95,158.93,23.776884]
[1730766293489,12.18816957,158.95,158.93,45.798984]
[1730766293977,12.18816957,158.96,158.93,45.798984]
[1730766295805,12.18816957,158.95,158.93,45.798984]
[1730766296098,12.18816957,158.95,158.93,39.506984]
[1730766296298,12.18816957,158.96,158.93,39.506984]
[1730766296507,12.18816957,158.96,158.93,45.798984]
[1730766297405,34.76706957,158.94,158.88,27.9457]
[1730766297591,12.18816957,158.93,158.88,43.6808]
[1730766297903,6.6016248,158.97,158.88,34.21706957]
[1730766298277,12.18816957,158.94,158.88,34.21706957]
[1730766298477,12.18816957,158.95,158.9,12.31365957]
[1730766298708,12.49919437,158.97,158.91,56.09054357]
[1730766298884,12.49919437,158.97,158.93,12.18816957]
[1730766298885,0.3110248,158.97,158.93,12.18816957]
[1730766299205,0.3110248,158.97,158.94,23.776884]
[1730766299386,0.3110248,158.97,158.94,30.068384]
[1730766299583,12.49919437,158.97,158.94,30.068384]
[1730766300695,0.3110248,158.97,158.94,45.797584]
[1730766301979,12.49919437,158.97,158.94,45.797584]
[1730766302606,12.18816957,158.96,158.94,45.797584]
[1730766302784,12.18816957,158.95,158.93,23.776884]
[1730766302988,12.18816957,158.94,158.93,23.776884]
[1730766303397,12.18816957,158.94,158.92,6.2921]
[1730766303591,12.18816957,158.94,158.92,22.0232]
[1730766304289,12.18816957,158.94,158.92,15.7311]
[1730766304491,6.6016248,158.97,158.9,6.2928]
[1730766304492,12.18816957,158.93,158.9,6.2928]
[1730766305007,12.18816957,158.92,158.91,23.776884]
[1730766305881,12.18816957,158.92,158.89,6.2936]
[1730766306085,12.18816957,158.9,158.88,22.028]
[1730766306283,12.18816957,158.89,158.88,15.7344]
[1730766306584,12.18816957,158.9,158.88,22.0284]
[1730766306784,12.18816957,158.9,158.88,15.7344]
[1730766307097,70.48517828,158.96,158.88,15.7344]
[1730766307098,12.18816957,158.91,158.88,15.7344]
[1730766307298,12.18816957,158.93,158.88,15.7344]
[1730766307609,12.18816957,158.92,158.89,23.776884]
[1730766307811,76.77607828,158.96,158.89,23.776884]
[1730766307812,12.18816957,158.91,158.89,23.776884]
[1730766307978,12.18816957,158.92,158.89,23.776884]
[1730766308381,12.18816957,158.92,158.9,6.2932]
[1730766308911,12.18816957,158.92,158.91,23.776884]
[1730766309212,12.18816957,158.93,158.91,23.776884]
[1730766310921,12.18816957,158.93,158.91,30.069584]
[1730766311122,12.18816957,158.94,158.91,45.801684]
[1730766311417,12.18816957,158.93,158.91,45.801684]
[1730766313030,12.18816957,158.94,158.91,45.801684]
[1730766313923,12.18816957,158.95,158.91,45.801684]
[1730766314510,12.18816957,158.94,158.91,45.801684]
[1730766316033,12.49919437,158.97,158.93,23.776884]
[1730766316524,12.18816957,158.96,158.93,23.776884]